Cogmind - Beta 16 @@@ ROGUE MODE // 2026.01.30 @ 11:30:33 Player: Hydrogenious Result: Destroyed by Y-45 Defender with Heavy Assault Rifle Performance ------------- Evolutions (2) 1000 Regions Visited (4) 800 Robots Destroyed (37) 185 Value Destroyed (1063) 1063 Prototype IDs (2) 40 Alien Tech Used (0) 0 Bonus (0) 0 TOTAL SCORE: 3088 Bonus ------- None Cogmind --------- Core Integrity 0/550 Matter 13/300 Energy 100/100 System Corruption 1% Temperature Cool (9) Movement Core (700) Ox13 Location -8/Materials Parts ------- > --- POWER (2) -------- (None) > --- PROPULSION (2) --- (None) > --- UTILITY (4) ------ High-capacity Storage Unit System Shield > --- WEAPON (3) ------- (None) > --- INVENTORY (20) --- Compact Wheel Thermal Generator Improved Light Armor Plating Hacking Suite Peak State ------------ > --- POWER ------------ Micro Nuclear Core Micro Nuclear Core > --- PROPULSION ------- Flight Unit Cesium-ion Thruster > --- UTILITY ---------- High-capacity Storage Unit Improved Terrain Scanner Improved Light Armor Plating System Shield > --- WEAPON ----------- Beam Rifle Improved Grenade Launcher Improved Grenade Launcher > --- INVENTORY -------- Light Nuclear Core Wheel Compact Wheel Thermal Generator Improved Light Armor Plating Hacking Suite Grenade Launcher Improved Grenade Launcher Mining Laser Mining Laser [Rating: 32] Favorites ----------- Power Micro Nuclear Core Engine Light Ion Engine Power Core Micro Nuclear Core Propulsion Flight Unit Wheel Compact Wheel Flight Unit Flight Unit Utility System Shield Device Improved Terrain Scanner Storage High-capacity Storage Unit Hackware System Shield Protection Improved Light Armor Plating Weapon Medium Laser Energy Gun Medium Laser Ballistic Gun Light Assault Rifle Launcher Grenade Launcher Special Weapon Mining Laser Build | -11 -10 -10 -9 -8 ------- Run | Yrd Mat Min Mat Mat Slots Evolved 4 | . . . 2 2 Power 1 | . . . . 1 Propulsion . | . . . . . Utility 2 | . . . 1 1 Weapon 1 | . . . 1 . Parts Attached 29 | 6 . 2 7 14 Power 6 | 1 . 1 1 3 Engine 3 | 1 . 1 1 . Core 3 | . . . . 3 Reactor . | . . . . . Propulsion 5 | 2 . . 1 2 Treads . | . . . . . Leg . | . . . . . Wheel 3 | 2 . . . 1 Hover . | . . . . . Flight 2 | . . . 1 1 Utility 6 | 1 . . 1 4 Device 1 | . . . . 1 Storage 3 | 1 . . 1 1 Processor . | . . . . . Hackware 1 | . . . . 1 Protection 1 | . . . . 1 Artifact . | . . . . . Weapon 12 | 2 . 1 4 5 Energy Gun 4 | 2 . . 2 . Energy Cannon . | . . . . . Ballistic Gun 2 | . . 1 1 . Ballistic Cannon . | . . . . . Launcher 4 | . . . 1 3 Special Weapon 2 | . . . . 2 Impact Weapon . | . . . . . Slashing Weapon . | . . . . . Piercing Weapon . | . . . . . Special Melee Weapon . | . . . . . Unidentified Prototypes . | . . . . . Parts Lost 24 | . . 4 5 15 Power 6 | . . 2 1 3 Propulsion 4 | . . 2 . 2 Utility 3 | . . . 1 2 Weapon 11 | . . . 3 8 Highest Loss Streak 7 | . . 2 3 7 To Critical Strikes 1 | . . . 1 . Average Backups 5 | 2 3 6 3 6 Power . | . 1 . . . Propulsion . | . . . . 1 Utility 1 | . . . . 1 Weapon 3 | 1 2 5 3 3 Tool/Special . | . . . . . Unused Backups 4 | . . . . 4 Power . | . . . . . Propulsion 1 | . . . . 1 Utility 3 | . . . . 3 Weapon . | . . . . . Tool/Special . | . . . . . Average Slot Usage (%) 76 | . 85 69 41 85 Engine 2 | . 14 10 4 . Core 10 | . . . . 14 Wheel 2 | . 28 17 . . Flight 11 | . . . 6 14 Device 5 | . . . . 8 Storage 8 | . 14 14 5 9 Hackware 6 | . . . . 8 Protection 4 | . . . . 6 Energy Gun 14 | . 28 23 11 13 Ballistic Gun 1 | . . 5 8 . Launcher 8 | . . . 5 9 Peak Build Rating 32 | 6 6 6 6 32 Average Rating 17 | 3 6 4 4 23 On Entrance 4 | . 6 6 3 6 Avg Prop Armor Cover (%) 3 | . . 5 4 2 Naked Turns . | . . . . . Heaviest Build 71 | 12 12 12 18 71 Greatest Support 26 | 26 26 26 4 10 Greatest Overweight (x) 18 | . . 3 5 18 Average Overweight (x) 3 | . . 2 2 8 Largest Inventory Capacity 20 | 8 8 8 10 20 Average Capacity 14 | 6 8 8 6 18 Most Carried 10 | 5 7 7 5 10 Average Carried 5 | 2 3 6 3 6 Final Capacity 20 | 8 8 8 10 20 Final Carried 7 | 2 7 5 3 4 Class Distribution -------------------- 36% | Mutant 36% | Tank 16% | Skirmisher 9% | Gunner Dominant Class ---------------- Mutant | -10/Materials Mutant | -10/Mines Mutant | -9/Materials Tank | -8/Materials Resources | -11 -10 -10 -9 -8 ----------- Run | Yrd Mat Min Mat Mat Matter Collected 560 | 238 . 40 223 59 Remotely . | . . . . . Salvage Created 972 | . . 106 393 473 Parts 52 | . . 6 23 23 Haulers Intercepted 1 | . . . . 1 Recyclers Shooed . | . . . . . Parts Field Recycled . | . . . . . Retrieved Matter . | . . . . . Parts Self-Destructed . | . . . . . Prevented . | . . . . . Parts Restored . | . . . . . Kills | -11 -10 -10 -9 -8 ------- Run | Yrd Mat Min Mat Mat Combat Hostiles Destroyed 27 | . . 2 10 15 Guns 8 | . . 2 5 1 AOE 19 | . . . 5 14 Classes Destroyed 10 | . . 1 4 5 Worker 1 | . . . 1 . Builder 3 | . . . . 3 Tunneler 1 | . . . . 1 Hauler 1 | . . . . 1 Recycler 3 | . . . 1 2 Operator 1 | . . . . 1 Swarmer 7 | . . . 3 4 Grunt 16 | . . 2 5 9 Duelist 1 | . . . . 1 Sentry 3 | . . . 2 1 Best Kill Streak 6 | . . 1 4 6 Combat Bots Only 4 | . . 1 3 4 Max Kills in Single Turn 5 | . . 1 2 5 Gunslinging . | . . . . . Exploded 2 | . . . 1 2 Melee . | . . . . . Uniques/NPCs Destroyed . | . . . . . Combat | -11 -10 -10 -9 -8 -------- Run | Yrd Mat Min Mat Mat Hostile Shots Fired 281 | . . 40 59 182 Missed 88 | . . 16 14 58 Hits 193 | . . 24 45 124 Projectile 193 | . . 24 45 124 Critical Strikes 10 | . . 1 2 7 Damage Taken 2463 | . . 328 507 1628 Core 827 | . . 59 211 557 Absorbed by Shields . | . . . . . Core Remaining (%) 74 | 100 . 76 47 . Volleys Fired 69 | . . 18 34 17 Largest 3 | . . 2 3 3 Hottest 142 | . . 90 90 142 Shots Fired 117 | . . 36 47 34 Gun 86 | . . 36 40 10 Cannon . | . . . . . Launcher 29 | . . . 7 22 Special 2 | . . . . 2 Kinetic 30 | . . . 30 . Thermal 40 | . . 18 10 12 Explosive 29 | . . . 7 22 Electromagnetic 18 | . . 18 . . Robot Hit Streak 8 | . . 8 5 7 Robot Miss Streak 5 | . . 4 5 3 Penetration Max . | . . . . . Secondary Targets 1 | . . 1 . . Max Gunslinging Chain 1 | . . 1 . . Shots Hit Robots 62 | . . 22 26 14 Core Hits 64 | . . 4 22 38 Critical Kills . | . . . . . Critical Parts Destroyed . | . . . . . Critical Strikes . | . . . . . Melee Attacks . | . . . . . Impact . | . . . . . Slashing . | . . . . . Piercing . | . . . . . Sneak Attacks . | . . . . . Combat Hostiles . | . . . . . Follow-up Attacks . | . . . . . Damage Inflicted 3134 | . . 319 670 2145 Guns 566 | . . 282 213 71 Cannons . | . . . . . Explosions 2539 | . . 37 457 2045 Melee . | . . . . . Ramming 5 | . . . . 5 Kinetic 136 | . . . 136 . Thermal 348 | . . 176 77 95 Explosive 2389 | . . . 344 2045 Electromagnetic 256 | . . 143 113 . Impact . | . . . . . Slashing . | . . . . . Piercing . | . . . . . Highest Corruption 1 | . . . 1 1 Average Corruption 1 | . . . 1 1 Corruption Purged . | . . . . . Corruption Blocked . | . . . . . Effects 7 | . . . 1 6 Message Errors 1 | . . . . 1 Matter Fused 1 | . . . . 1 Heat Flow Errors 2 | . . . 1 1 Parts Rejected 1 | . . . . 1 Misfires 2 | . . . . 2 Overload Shots . | . . . . . Overflow Damage 72 | . . . . 72 Projectiles . | . . . . . Explosions 72 | . . . . 72 Melee . | . . . . . Knockbacks . | . . . . . Impact . | . . . . . Kinetic . | . . . . . Secondary . | . . . . . Self-Inflicted Damage 160 | . . . 32 128 Shots 5 | . . . 1 4 Rammed 6 | . . . 1 5 Targets Rammed 6 | . . . 1 5 Kicked . | . . . . . Crushed . | . . . . . Highest Temperature 550 | . . 550 179 233 Average Temperature 135 | . . 301 42 69 Received Heat Transfer 804 | . . 204 105 495 Effects 15 | . . 15 . . Shutdowns 2 | . . 2 . . Energy Bleed 2 | . . 2 . . Matter Decay 2 | . . 2 . . Short Circuit 2 | . . 2 . . Damage (minor) 3 | . . 3 . . Damage (major) 4 | . . 4 . . Siege Activations . | . . . . . Martial Activations . | . . . . . Shielding Activations . | . . . . . Robots Disrupted . | . . . . . Combat Hostiles . | . . . . . Robots Corrupted . | . . . . . Combat Hostiles . | . . . . . Parts Fried 1 | . . . 1 . Impact Corruptions . | . . . . . Robots Melted . | . . . . . Combat Hostiles . | . . . . . Parts Melted . | . . . . . Heat Transferred 914 | . . 457 222 235 Parts Sabotaged . | . . . . . Parts Stolen . | . . . . . Parts Stripped . | . . . . . Power Chain Reactions 4 | . . 1 3 . Alert | -11 -10 -10 -9 -8 ------- Run | Yrd Mat Min Mat Mat Maximum Alert Level 1 | . . . . 1 Low Security (%) 89 | 100 100 100 100 85 Level 1 10 | . . . . 14 Level 2 . | . . . . . Level 3 . | . . . . . Level 4 . | . . . . . Level 5 . | . . . . . High Security . | . . . . . Max Security . | . . . . . Peak Influence 394 | . 7 38 198 394 Initial 48 | . . . . 48 Average 70 | . . 12 82 78 Influence Increases 1048 | . 7 68 333 640 Destroy 0b10 Robot/C 540 | . . 40 200 300 Destroy 0b10 Robot/NC 50 | . . . 10 40 Destroy Leader 112 | . . 10 50 52 Successful Hack 48 | . 7 . 15 26 Disable Machine 105 | . . 15 30 60 Destroy Structure 178 | . . 3 28 147 Lose Combat Pursuer 15 | . . . . 15 Influence Decreases 766 | . 7 68 218 473 Entered New Map 67 | . . . . 67 Time Decay 491 | . 7 40 188 256 Lost Part 208 | . . 28 30 150 Squads Dispatched 4 | . . . 2 2 Investigation . | . . . . . Extermination . | . . . . . Reinforcement 4 | . . . 2 2 Assault . | . . . . . Garrison . | . . . . . Intercept . | . . . . . Searches Triggered . | . . . . . Construction Impeded 2 | . . . 1 1 Haulers Reinforced . | . . . . . Active Scanning Responses . | . . . . . Cargo Convoy Interrupts . | . . . . . Stealth | -11 -10 -10 -9 -8 --------- Run | Yrd Mat Min Mat Mat Distress Signals 4 | . . . 2 2 Communications Jammed . | . . . . . Distress Signals . | . . . . . Times Spotted 39 | . 1 4 13 21 Peak Tracking Total 6 | . 1 2 6 5 Tactical Retreats 1 | . . . . 1 Traps | -11 -10 -10 -9 -8 ------- Run | Yrd Mat Min Mat Mat Traps Triggered 1 | . . . 1 . Indirectly . | . . . . . Trap Hack Attempts . | . . . . . Triggered . | . . . . . Disarmed 1 | . . . 1 . Reprogrammed . | . . . . . Reused . | . . . . . Traps Extracted . | . . . . . Installed . | . . . . . Triggered . | . . . . . Machines | -11 -10 -10 -9 -8 ---------- Run | Yrd Mat Min Mat Mat Machines Disabled 7 | . . 1 2 4 Max in Single Turn 2 | . . 1 2 2 Machines Repaired . | . . . . . Machines Dismantled . | . . . . . Machines Sabotaged . | . . . . . Overloaded Fab Kills . | . . . . . Hacking | -11 -10 -10 -9 -8 --------- Run | Yrd Mat Min Mat Mat Machines Accessed 10 | . 1 . 5 4 Terminals 8 | . 1 . 5 2 Fabricators . | . . . . . Repair Stations . | . . . . . Recycling Units 1 | . . . . 1 Scanalyzers 1 | . . . . 1 Garrison Access . | . . . . . Total Hacks 36 | . 3 . 19 14 Successful 18 | . 1 . 10 7 Failed 18 | . 2 . 9 7 Catastrophic 1 | . . . . 1 Database Lockouts . | . . . . . Manual . | . . . . . Terminals 28 | . 3 . 19 6 Fabricators . | . . . . . Repair Stations . | . . . . . Recycling Units 5 | . . . . 5 Scanalyzers 3 | . . . . 3 Garrison Access . | . . . . . Terminal Hacks 14 | . 1 . 10 3 Record 2 | . . . 2 . Prototype ID Bank 1 | . . . 1 . Branch Access Points 1 | . 1 . . . Alert Level 2 | . . . 2 . Locate Traps 2 | . . . 1 1 Disarm Traps 1 | . . . 1 . Dispatch Records 1 | . . . . 1 Maintenance Status 1 | . . . 1 . Security Status 1 | . . . 1 . Patrol Status 1 | . . . 1 . Transport Status 1 | . . . . 1 Fabricator Hacks . | . . . . . Repair Station Hacks . | . . . . . Recycling Unit Hacks 2 | . . . . 2 Report Inventory 1 | . . . . 1 Retrieve Components 1 | . . . . 1 Scanalyzer 2 | . . . . 2 Insert Component 1 | . . . . 1 Analyze 1 | . . . . 1 Garrison Access Hacks . | . . . . . Unauthorized Hacks . | . . . . . Terminals . | . . . . . Fabricators . | . . . . . Repair Stations . | . . . . . Recycling Units . | . . . . . Scanalyzers . | . . . . . Garrison Access . | . . . . . Data Cores Recovered . | . . . . . Used . | . . . . . Hacking Detections 10 | . 1 . 5 4 Full Trace Events 1 | . . . 1 . Feedback Events 1 | . . . 1 . Corruption 1 | . . . 1 . Feedback Blocked . | . . . . . Robot Schematics Acquired . | . . . . . Robots Built . | . . . . . Authchips . | . . . . . Time . | . . . . . Total Robot Build Rating . | . . . . . Part Schematics Acquired 1 | . . . . 1 Parts Built . | . . . . . Authchips . | . . . . . Time . | . . . . . Total Part Build Rating . | . . . . . Part Studies Acquired . | . . . . . Parts Repaired . | . . . . . Time . | . . . . . Parts Recycled . | . . . . . Recycled Matter . | . . . . . Retrieved Matter . | . . . . . Retrieved Components 1 | . . . . 1 Parts Scanalyzed 1 | . . . . 1 Part Schematics Acquired 1 | . . . . 1 Parts Damaged . | . . . . . Bothacking | -11 -10 -10 -9 -8 ------------ Run | Yrd Mat Min Mat Mat Used RIF Installer . | . . . . . Robots Hacked . | . . . . . Non-combat . | . . . . . Combat . | . . . . . Robot Hacks Applied . | . . . . . Relay Couplers Released . | . . . . . Fabnet Peak Effective % . | . . . . . Robots Rewired . | . . . . . Allies Hacked . | . . . . . Hacks Repelled . | . . . . . Allies | -11 -10 -10 -9 -8 -------- Run | Yrd Mat Min Mat Mat Total Allies . | . . . . . Largest Group . | . . . . . Highest-Rated Group . | . . . . . Highest-Rated Ally . | . . . . . Total Orders . | . . . . . Ally Attacks . | . . . . . Total Damage . | . . . . . Kills . | . . . . . Allies Corrupted . | . . . . . Allies Melted . | . . . . . Intel | -11 -10 -10 -9 -8 ------- Run | Yrd Mat Min Mat Mat Active Infowar (turns) 1901 | . . . . 1901 Terrain 1901 | . . . . 1901 Robot Analysis Total . | . . . . . Derelict Logs Recovered . | . . . . . Drone Launches . | . . . . . Drone Recoveries . | . . . . . Exploration | -11 -10 -10 -9 -8 ------------- Run | Yrd Mat Min Mat Mat Turns Passed 3005 | 64 178 133 515 2115 Spaces Moved 850 | 59 193 46 250 302 Core 245 | 8 . 41 116 80 Treads . | . . . . . Legs . | . . . . . Wheels 258 | 51 193 5 . 9 Hover . | . . . . . Flight 347 | . . . 134 213 Fastest Speed 50 | 50 90 90 120 140 Average Speed 318 | 84 90 167 170 656 Slowest Speed 1400 | 90 90 200 300 1400 Overloaded Moves . | . . . . . Propulsion Burnouts . | . . . . . Robots Hopped . | . . . . . Potential Cave-ins . | . . . . . Cave-ins Triggered . | . . . . . Exploration Rate (%) 19 | 3 23 13 34 24 Regions Visited 4 Branch Regions 1 Pre-discovered Areas . | . . . . . Known Exits Taken 1 | . 1 . . . Unknown Exits Taken 3 | 1 . 1 1 . Scrap Searched . | . . . . . Spaces Dug . | . . . . . Terrain Destroyed 234 | . . 3 30 201 Melee . | . . . . . Projectile . | . . . . . AOE 234 | . . 3 30 201 Terrain Rammed . | . . . . . Walls Destroyed . | . . . . . Machines Disabled . | . . . . . Actions | -11 -10 -10 -9 -8 --------- Run | Yrd Mat Min Mat Mat Total 996 | 72 197 66 299 362 Wait 10 | . . . 3 7 Move 846 | 58 192 45 249 302 Hop . | . . . . . Pick Up 33 | 8 5 . 5 15 Fast Attach . | . . . . . Attach 27 | 6 . 1 7 13 Detach . | . . . . . Swap 3 | . . 1 . 2 Drop 2 | . . 1 . 1 Fire 69 | . . 18 34 17 Melee . | . . . . . Ram 6 | . . . 1 5 Kick . | . . . . . Crush . | . . . . . Escape Stasis . | . . . . . Rewire . | . . . . . Trap . | . . . . . Miscellaneous . | . . . . . Route ------- -11/Scrapyard -10/Materials -10/Mines -9/Materials -8/Materials History --------- Turn | Location | Event 2 | -11/Scrapyard | Met Revision 17 18 | -11/Scrapyard | Discovered new exit (range 16) 65 | -11/Scrapyard | Entered Materials 117 | -10/Materials | Identified exit to Mines 243 | -10/Materials | Entered Mines 313 | -10/Mines | Build established: Mutant 360 | -10/Mines | Discovered new exit (range 9) 376 | -10/Mines | Entered Materials 376 | -9/Materials | Evolved 2 slots: Utility x1, Weapon x1 577 | -9/Materials | Lost 3 parts (1u2w) 652 | -9/Materials | Core integrity fell below 50% 843 | -9/Materials | Discovered new exit (range 4) 891 | -9/Materials | Entered another Materials area 891 | -8/Materials | Evolved 2 slots: Power x1, Utility x1 1234 | -8/Materials | Build established: Skirmisher 1724 | -8/Materials | Build established: Tank 2747 | -8/Materials | Lost 3 parts (1n2w) 2823 | -8/Materials | Lost 3 parts (1p2w) 2933 | -8/Materials | Core integrity fell below 50% 2982 | -8/Materials | Core integrity fell below 20% 2990 | -8/Materials | Lost 7 parts (2p1n1u3w) 3006 | -8/Materials | Destroyed by Y-45 Defender with Heavy Assault Rifle Last Messages --------------- K-01 Serf collects debris. U-05 Engineer lays Concrete. R-06 Scavenger collects Lgt. Assault Rifle. U-05 Engineer lays Concrete. K-01 Serf collects debris. Mic. Nuclear Core destroyed. U-05 Engineer builds a Wall. K-01 Serf collects debris. U-05 Engineer builds a Wall. K-01 Serf destroyed. U-05 Engineer builds a Wall. U-05 Engineer lays Concrete. Mining Laser destroyed. 9 N093XEOKKDXNCCW|K Wheel destroyed. Mining Laser destroyed. U-05 Engineer builds a Wall. Critical hit (Burn: +37). Lgt. Nuclear Core destroyed. System corrupted: Matter fused (-10). Map ----- +----------------------------------------------------+ | | | ???????????????????????????????????? | | ???????????????????????????????????? | | ????? ? ???????????????????????????? | | ???????????????????????????????????? | | ?"??"?"????????????????????????????? | | ???? ???????????????#??????????? | | ##??????????? ?????????? #?????????? | | ###?######????#????????? #?????????? | | ##????#?????????????"" #?????????? | | ? ? ?????????????"" #?????????? | | ?? ???? ????+??????"" #?????????? | | #???????#???##??????"" #?????????? | | ###?????????????????? #?????????? | | # ##########??????? ??????????? | | # # # ##??#???#+#??????????? | | # ###### # ######## ###????????? | | % = % #????????? | | *% + ?????? | | #????????? | | ###+########### ######Y##+#????????? | | # ! # # #????????? | | # """ # # # #????????? | | # """ #?# # # " " ! #????????? | | # """ #??#?### # """ #????????? | | # #???#?## # "" @#????????? | | # ###????# # #????????? | | # #??????# # #????????? | | # "" ##?????? # #????????? | | # ? "" #??????# ###########????????? | | # ? T" #???#??# ???????????????????? | | #?? "? #??????? ???????????????????? | | #?? "? ???????? ???????????????????? | | ???? ? ???????? ???????????????????? | | ?????##???????? ???????????????????? | | ???????????????????????????????????? | | ???????????????????????????????????? | | ???????????????????????????????????? | | ???????????????????????????????????? | | ???????????????????????????????????? | | ???????????????????????????????????? | | ???????????????????????????????????? | | ???????????????????????????????????? | | ???????????????????????????????????? | | ???????????????????????????????????? | | ???????????????????????????????????? | | ???????????????????????????????????? | | ???????????????????????????????????? | | ???????????????????????????????????? | | ???????????????????????????????????? | +----------------------------------------------------+ Best States ------------- Heat Dissipation 31 Energy Generation 25 Energy Capacity 265 Matter Stores 300 Matter Capacity 300 Sight Range 16 Terrain Scan Range 16 Terrain Scan Density 10 Armor Coverage 150 Evasion (%) 42 Defensive Hacking 10 Item Schematics ----------------- Com. Wheel | -8/Materials | Scanalyzed Robot Schematics ------------------ None Fabricated ------------ Nothing Repaired ---------- Nothing Studied --------- None Alien Tech Used ----------------- None Achievements -------------- For Emergencies Only Resistances Are Futile You Again Challenges ------------ None Game ------ Seed EtherialPrecisionSegregator Manual? 0 Play Time 00:25:20 Cumulative 7.3 hours Start 2026.01.30 @ 09:22:59 End 2026.01.30 @ 11:30:33 Sessions 1 Manual Loads 0 Difficulty Rogue Special Mode None Game No. 18 Rogue 18 Adventurer 0 Explorer 0 Win Type - Total 0 Types 0/0/0/0/0/0/0/0/0/0 Lore% 10 Gallery% 10 Achievement% 9 Wizard Run 0 Options --------- Layout 1 ASCII 0 Keyboard 0 Movement Arrows Keybinds 0 Fullscreen 1 Font 24/Smallcaps Map View 50x35 Zoom Use 0% Tactical HUD 0 Map Filters NONE Filters NONE Steam 1 RUN: a3ab81ba-76db-4831-a661-4cbabf525fa4